bitfinex-derivatives/quotes_BTCF0:USTF0_20240907
["timestamp","ask_amount","ask_price","bid_price","bid_amount"]
[1725742540407,0.202,54204.0,54203.0,0.14755202]
[1725742540896,0.201,54204.0,54203.0,0.14755202]
[1725742541603,0.201,54204.0,54203.0,0.09225]
[1725742543408,0.293248,54204.0,54203.0,0.09225]
[1725742544697,0.292248,54204.0,54203.0,0.09225]
[1725742544897,0.293248,54204.0,54203.0,0.09225]
[1725742545497,0.292248,54204.0,54203.0,0.09225]
[1725742545805,0.293248,54204.0,54203.0,0.09225]
[1725742547402,0.294248,54204.0,54203.0,0.09225]
[1725742548806,0.202,54204.0,54203.0,0.09225]
[1725742550117,0.24716865,54204.0,54203.0,0.09225]
[1725742551411,0.202,54204.0,54203.0,0.09225]
[1725742553510,0.202,54204.0,54202.0,0.01123708]
[1725742553714,0.294248,54204.0,54203.0,0.07374891]
[1725742554016,0.294248,54204.0,54201.0,0.07374891]
[1725742554017,0.092252,54202.0,54201.0,0.07374891]
[1725742554217,0.202252,54202.0,54201.0,0.07374891]
[1725742555521,0.209252,54202.0,54201.0,0.07374891]
[1725742556108,0.092253,54201.0,54200.0,0.092255]
[1725742556517,0.202253,54201.0,54200.0,0.092255]
[1725742556911,0.092257,54199.0,54198.0,0.09190238]
[1725742557113,0.11,54201.0,54198.0,0.23247382]
[1725742557317,0.116,54201.0,54199.0,0.092257]
[1725742558023,0.11,54201.0,54199.0,0.092257]
[1725742558226,0.11,54201.0,54199.0,0.18415938]
[1725742558539,0.11,54201.0,54200.0,0.07377449]
[1725742558911,0.092246,54206.0,54200.0,0.07377449]
[1725742559117,0.11,54205.0,54204.0,0.05533078]
[1725742559324,0.11,54205.0,54203.0,0.05533078]
[1725742559523,0.11,54205.0,54204.0,0.092248]
[1725742560119,0.11,54205.0,54204.0,0.14757878]
[1725742560424,0.11,54205.0,54204.0,0.092248]
[1725742560827,0.11,54208.0,54207.0,0.092242]
[1725742561028,0.11,54209.0,54207.0,0.092242]
[1725742562026,0.11,54209.0,54207.0,0.14757494]
[1725742563124,0.124,54209.0,54207.0,0.14757494]
[1725742565827,0.124,54209.0,54207.0,0.092242]
[1725742566328,0.04516866,54208.0,54207.0,0.092242]
[1725742567429,0.05916866,54208.0,54207.0,0.092242]
[1725742567623,0.11578434,54208.0,54207.0,0.092242]
[1725742567826,0.05916866,54208.0,54207.0,0.092242]
[1725742568520,0.092246,54206.0,54204.0,0.10304831]
[1725742568726,0.092246,54206.0,54204.0,0.092248]
[1725742568727,0.30194144,54205.0,54204.0,0.092248]
[1725742568925,0.15516701,54205.0,54204.0,0.092248]
[1725742570028,0.30197472,54205.0,54204.0,0.092248]
[1725742570425,0.31197472,54205.0,54204.0,0.092248]
[1725742571436,0.31197472,54205.0,54204.0,0.10340758]
[1725742571626,0.40422172,54205.0,54204.0,0.10340758]
[1725742571829,0.40422172,54205.0,54204.0,0.01115958]
[1725742572031,0.092248,54204.0,54201.0,0.092253]
[1725742572334,0.28422025,54204.0,54202.0,0.092252]
[1725742572533,0.04516701,54203.0,54202.0,0.092252]
[1725742573523,0.092248,54204.0,54202.0,0.092252]
[1725742573730,0.115,54203.0,54202.0,0.092252]
[1725742575428,0.20725,54203.0,54202.0,0.092252]
[1725742575735,0.20225,54203.0,54202.0,0.092252]
[1725742576332,0.20225,54203.0,54202.0,0.10345587]
[1725742576641,0.20725,54203.0,54202.0,0.10345587]
[1725742581437,0.25242008,54203.0,54202.0,0.10345587]
[1725742582926,0.05017008,54203.0,54202.0,0.10345587]
[1725742583632,0.05017008,54203.0,54202.0,0.24575587]
[1725742583946,0.005,54203.0,54202.0,1.49148787]
[1725742585633,0.005,54203.0,54202.0,0.89148787]
[1725742586331,0.005,54203.0,54202.0,0.79923587]
[1725742586536,0.005,54203.0,54202.0,0.89148787]
[1725742586842,0.14680065,54214.0,54203.0,0.09225]
[1725742587141,0.14680065,54215.0,54214.0,0.092231]
[1725742587441,0.30196215,54215.0,54214.0,0.092231]
[1725742588130,0.1551615,54215.0,54214.0,0.092231]
[1725742588545,0.11,54215.0,54214.0,0.092231]
[1725742590237,0.123,54215.0,54214.0,0.093231]
[1725742590744,0.123,54215.0,54214.0,0.10437408]
[1725742596544,0.22477248,54215.0,54214.0,0.10437408]
[1725742598845,0.22477466,54215.0,54214.0,0.10437408]
[1725742603453,0.123,54215.0,54214.0,0.10437408]
[1725742604345,0.21523,54215.0,54214.0,0.10437408]
[1725742604549,0.30746,54215.0,54214.0,0.001]
[1725742606655,0.21523,54215.0,54214.0,0.001]
[1725742608448,1.46082,54215.0,54214.0,0.001]
[1725742611550,1.72745333,54215.0,54214.0,0.001]
[1725742614445,1.73840055,54215.0,54214.0,0.001]
[1725742615354,0.092236,54211.0,54210.0,0.092238]
[1725742615555,0.34888615,54211.0,54210.0,0.092238]
[1725742615761,0.39405337,54211.0,54210.0,0.092238]
[1725742617261,0.25540322,54211.0,54210.0,0.092238]
[1725742618553,0.210236,54211.0,54210.0,0.092238]
[1725742618953,0.210236,54211.0,54210.0,0.14754474]
[1725742622560,0.210236,54211.0,54210.0,0.05530674]
[1725742626660,0.210236,54211.0,54208.0,0.092241]
[1725742626661,0.09224,54209.0,54208.0,0.092241]
[1725742628062,0.09824,54209.0,54208.0,0.092241]
[1725742629276,0.092243,54207.0,54206.0,0.0107745]
[1725742629469,0.202243,54207.0,54206.0,0.0107745]
[1725742629768,0.092247,54205.0,54204.0,0.14755374]
[1725742630469,0.092247,54205.0,54204.0,0.15861619]
[1725742632073,0.092247,54205.0,54204.0,0.10330945]
[1725742632264,0.093247,54205.0,54204.0,0.10330945]
[1725742632964,0.001,54205.0,54204.0,0.10330945]
[1725742634169,0.04616759,54205.0,54204.0,0.10330945]
[1725742635479,0.001,54205.0,54204.0,0.10330945]
[1725742640685,0.19282351,54205.0,54204.0,0.10330945]
[1725742641764,0.001,54205.0,54204.0,0.24386788]
[1725742648669,0.001,54205.0,54204.0,0.35448136]
[1725742653784,0.001,54205.0,54204.0,0.24386788]
[1725742655286,0.001,54205.0,54204.0,0.35448136]
[1725742655889,0.111,54205.0,54204.0,0.35448136]
[1725742656780,0.15616751,54205.0,54204.0,0.10330945]
[1725742657995,0.15516751,54205.0,54204.0,0.10330945]
[1725742661294,0.14416751,54205.0,54204.0,0.10330945]
[1725742662383,0.14416751,54205.0,54204.0,0.10730945]
[1725742662589,0.04516751,54205.0,54204.0,0.10730945]
[1725742662793,0.25709507,54207.0,54206.0,0.092245]
[1725742662983,0.26663398,54207.0,54206.0,0.092245]
[1725742663605,0.10178191,54207.0,54206.0,0.092245]
[1725742663787,0.063856,54208.0,54207.0,0.092243]
[1725742663991,0.063856,54208.0,54207.0,0.23279764]
[1725742665002,0.065856,54208.0,54207.0,0.23279764]
[1725742665495,0.069856,54208.0,54207.0,0.23279764]
[1725742666599,0.069856,54208.0,54207.0,0.34351814]
[1725742668094,0.069856,54208.0,54207.0,0.34351799]
[1725742669300,0.069856,54208.0,54207.0,0.23279749]
[1725742669603,0.069856,54208.0,54207.0,0.34351222]
[1725742670605,0.069856,54208.0,54207.0,0.23279749]
[1725742671695,0.21680012,54208.0,54207.0,0.092243]
[1725742671894,0.26196586,54208.0,54207.0,0.092243]
[1725742672814,0.11502174,54208.0,54207.0,0.092243]
[1725742673600,0.092245,54206.0,54205.0,0.092245]
[1725742673796,0.24741074,54206.0,54205.0,0.092245]
[1725742674901,0.24841074,54206.0,54205.0,0.092245]
[1725742675403,0.24841074,54206.0,54205.0,0.094245]
[1725742676007,0.24841074,54206.0,54205.0,0.10540694]
[1725742678001,0.24841235,54206.0,54205.0,0.10540694]
[1725742678512,0.13841235,54206.0,54205.0,0.10540694]
[1725742678806,0.203245,54206.0,54205.0,0.24596478]
[1725742680201,0.111,54206.0,54205.0,0.24596478]
[1725742686699,0.111,54206.0,54205.0,0.10540694]
[1725742691110,0.15616675,54206.0,54205.0,0.10540694]
[1725742691820,0.15616662,54206.0,54205.0,0.10540694]
[1725742693809,0.111,54206.0,54205.0,0.2459625]
[1725742696610,0.111,54206.0,54205.0,0.33822683]
[1725742697013,0.111,54206.0,54205.0,0.19767127]
[1725742697207,0.111,54206.0,54205.0,0.33822726]
[1725742699117,0.111,54206.0,54205.0,0.33822725]
[1725742699920,0.111,54206.0,54205.0,0.19767127]
[1725742701108,0.092212,54226.0,54205.0,1.16660194]
[1725742701321,0.12856881,54221.0,54219.0,0.092221]
[1725742701512,0.202222,54220.0,54213.0,0.1558]
[1725742701725,0.202222,54220.0,54218.0,0.05536225]
[1725742702017,0.202222,54220.0,54216.0,0.092226]
[1725742702018,0.10176407,54219.0,54216.0,0.092226]
[1725742702219,0.04515959,54218.0,54216.0,0.092226]
[1725742702410,0.04515959,54217.0,54216.0,0.092226]
[1725742702919,0.1468668,54217.0,54216.0,0.092226]
[1725742703424,0.1468668,54217.0,54216.0,0.093226]
[1725742703610,0.2568668,54217.0,54216.0,0.093226]
[1725742703812,0.2818668,54217.0,54216.0,0.093226]
[1725742704214,0.135,54217.0,54216.0,0.093226]
[1725742704623,0.2818668,54217.0,54216.0,0.093226]
[1725742704827,0.135,54217.0,54216.0,0.093226]
[1725742706627,0.2633948,54217.0,54216.0,0.093226]
[1725742708923,0.135,54217.0,54216.0,0.093226]
[1725742720635,0.124,54217.0,54216.0,0.092226]
[1725742721332,0.11,54217.0,54216.0,0.092226]
[1725742722335,0.11,54217.0,54216.0,0.093226]
[1725742722723,0.11,54217.0,54216.0,0.092226]
[1725742722935,0.11,54217.0,54216.0,0.094226]
[1725742724137,0.15515888,54217.0,54216.0,0.094226]
[1725742728042,0.30202568,54217.0,54216.0,0.094226]
[1725742728547,0.15515888,54217.0,54216.0,0.094226]
[1725742728946,0.04515888,54217.0,54216.0,0.094226]
[1725742729138,0.16534082,54223.0,54216.0,0.66532]
[1725742729448,0.14677265,54221.0,54220.0,0.092221]
[1725742729640,0.04515835,54221.0,54220.0,0.092221]
[1725742729841,0.14677265,54223.0,54222.0,0.092218]
[1725742730246,0.04515483,54223.0,54219.0,0.11]
[1725742730446,0.14681327,54223.0,54219.0,0.11]
[1725742730646,0.14681327,54223.0,54222.0,0.092218]
[1725742730647,0.25681327,54223.0,54222.0,0.092218]
[1725742730838,0.15515483,54223.0,54222.0,0.092218]
[1725742731038,0.25681422,54223.0,54222.0,0.092218]
[1725742731335,0.15515483,54223.0,54222.0,0.092218]
[1725742732035,0.111,54223.0,54222.0,0.092218]
[1725742733548,0.001,54223.0,54222.0,0.092218]
[1725742733745,0.111,54223.0,54222.0,0.092218]
[1725742736940,0.092221,54220.0,54219.0,0.06615491]
[1725742737140,0.202221,54220.0,54218.0,0.05536225]
[1725742737343,0.202223,54219.0,54218.0,0.05536225]
[1725742737536,0.202223,54219.0,54216.0,0.15878986]
[1725742737742,0.202223,54219.0,54216.0,0.10342761]
[1725742738947,0.202223,54219.0,54217.0,0.092225]
[1725742739350,0.204223,54219.0,54217.0,0.092225]
[1725742740654,0.204223,54219.0,54218.0,0.092224]
[1725742741051,0.206223,54219.0,54218.0,0.092224]
[1725742741843,0.205223,54219.0,54218.0,0.092224]
[1725742742550,0.204223,54219.0,54218.0,0.092224]
[1725742744152,0.003,54219.0,54218.0,0.092224]
[1725742744346,0.113,54219.0,54218.0,0.10339815]
[1725742744746,0.113,54219.0,54218.0,0.092224]
[1725742746154,0.38010255,54219.0,54218.0,0.092224]
[1725742747458,0.15815855,54219.0,54218.0,0.092224]
[1725742747660,0.25038155,54219.0,54218.0,0.092224]
[1725742748259,0.30698486,54219.0,54218.0,0.092224]
[1725742748454,0.25038155,54219.0,54218.0,0.092224]
[1725742750658,0.25038195,54219.0,54218.0,0.092224]
[1725742751953,0.14038195,54219.0,54218.0,0.092224]
[1725742752148,0.25038195,54219.0,54218.0,0.092224]
[1725742754060,0.205223,54219.0,54218.0,0.092224]
[1725742761187,0.25038195,54219.0,54218.0,0.092224]
[1725742765970,0.205223,54219.0,54218.0,0.092224]
[1725742766274,0.25038138,54219.0,54218.0,0.092224]
[1725742766569,0.30698434,54219.0,54218.0,0.092224]
[1725742766876,0.47232516,54219.0,54218.0,0.092224]
[1725742767169,0.30698434,54219.0,54218.0,0.092224]
[1725742769066,0.205223,54219.0,54218.0,0.092224]
[1725742776082,0.30698473,54219.0,54218.0,0.092224]
[1725742776286,0.47231785,54219.0,54218.0,0.092224]
[1725742777183,0.21476173,54219.0,54218.0,0.092224]
[1725742778681,0.15815855,54219.0,54218.0,0.092224]
[1725742779187,0.27833312,54219.0,54218.0,0.092224]
[1725742779480,0.3800932,54219.0,54218.0,0.092224]
[1725742779897,0.3800932,54219.0,54216.0,0.01097353]
[1725742779898,0.092226,54217.0,54216.0,0.01097353]
[1725742780187,0.092226,54217.0,54204.0,0.0922]
[1725742780188,0.092241,54208.0,54204.0,0.0922]
[1725742780383,0.11,54205.0,54204.0,0.139248]
[1725742780574,0.23848141,54205.0,54204.0,0.139248]
[1725742780779,0.11,54205.0,54204.0,0.092248]
[1725742781075,0.15416744,54205.0,54204.0,0.092248]
[1725742781478,0.23741002,54205.0,54204.0,0.10335122]
[1725742781687,0.109,54205.0,54204.0,0.10335122]
[1725742781876,0.201247,54205.0,54204.0,0.01110322]
[1725742782082,0.201247,54205.0,54204.0,0.004]
[1725742782278,0.39335523,54205.0,54204.0,0.004]
[1725742782584,0.24641476,54205.0,54204.0,0.004]
[1725742782983,0.48595523,54205.0,54204.0,0.004]
[1725742783182,0.38471476,54205.0,54204.0,0.004]
[1725742783696,0.38471476,54205.0,54204.0,0.001]
[1725742784083,0.339547,54205.0,54204.0,0.05636225]
[1725742784278,0.339547,54205.0,54204.0,0.05536225]
[1725742784279,0.345547,54205.0,54204.0,0.05536225]
[1725742784583,0.09225,54203.0,54202.0,0.05536225]
[1725742785481,0.09225,54203.0,54201.0,0.05536225]
[1725742785678,0.11,54202.0,54201.0,0.05536225]
[1725742787695,0.11,54202.0,54200.0,0.05536225]
[1725742788485,0.202252,54202.0,54200.0,0.05536225]
[1725742788684,0.202252,54202.0,54199.0,0.14761725]
[1725742789289,0.202252,54202.0,54201.0,0.05536225]
[1725742789494,0.202252,54202.0,54200.0,0.14761725]
[1725742790090,0.202252,54202.0,54200.0,0.14861725]
[1725742790289,0.092253,54201.0,54200.0,0.14861725]
[1725742791210,0.092253,54201.0,54200.0,0.093255]
[1725742792596,0.092253,54201.0,54200.0,0.001]
[1725742793501,0.092255,54200.0,54199.0,0.01076143]
[1725742793696,0.092255,54200.0,54197.0,0.09226]
[1725742793994,0.092263,54196.0,54193.0,0.092266]
[1725742794301,0.11,54194.0,54193.0,0.092266]
[1725742796593,0.11,54194.0,54193.0,0.097266]
[1725742799098,0.06384912,54194.0,54193.0,0.005]
[1725742799396,0.06384912,54194.0,54193.0,0.07852954]
[1725742799397,0.202265,54194.0,54193.0,0.07852954]
[1725742801098,0.092265,54194.0,54193.0,0.07852954]
[1725742801303,0.202265,54194.0,54193.0,0.07852954]
[1725742803702,0.202265,54194.0,54193.0,0.005]
[1725742804204,0.202265,54194.0,54193.0,0.07855793]
[1725742804598,0.202265,54194.0,54193.0,0.005]
[1725742806001,0.29453,54194.0,54193.0,0.005]
[1725742806197,1.540355,54194.0,54193.0,0.06019209]
[1725742806508,1.540355,54194.0,54189.0,0.05519209]
[1725742806509,0.092272,54190.0,54189.0,0.05519209]
[1725742806696,0.294544,54190.0,54188.0,0.05519209]
[1725742806902,0.202274,54189.0,54188.0,0.05519209]
[1725742807202,0.092277,54187.0,54182.0,0.09226433]
[1725742807502,0.645915,54188.0,54184.0,0.05520597]
[1725742807804,0.645915,54188.0,54183.0,0.05520597]
[1725742807805,0.092282,54184.0,54183.0,0.05520597]
[1725742808002,0.202282,54184.0,54183.0,0.05520597]
[1725742808500,0.001,54189.0,54181.0,0.07360968]
[1725742808700,0.119,54188.0,54186.0,0.092279]
[1725742808904,0.119,54188.0,54187.0,0.14748359]
[1725742809401,0.11,54188.0,54187.0,0.092277]
[1725742810010,0.119,54188.0,54187.0,0.092277]
[1725742810515,0.11,54188.0,54187.0,0.092277]
[1725742810697,0.121,54188.0,54187.0,0.093277]
[1725742811202,0.134,54188.0,54187.0,0.001]
[1725742812004,0.224,54188.0,54187.0,0.001]
[1725742812409,0.224,54188.0,54187.0,0.05621789]
[1725742813004,0.316275,54188.0,54187.0,0.05621789]
[1725742813204,0.316275,54188.0,54187.0,0.001]
[1725742816705,0.316275,54188.0,54187.0,0.093277]
[1725742817404,0.024,54188.0,54187.0,0.093277]
[1725742817816,0.13376272,54188.0,54187.0,0.093277]
[1725742818016,0.024,54188.0,54187.0,0.093277]
[1725742818713,0.024,54188.0,54187.0,0.10444399]
[1725742819104,0.024,54188.0,54187.0,0.093277]
[1725742819304,0.224,54188.0,54187.0,0.093277]
[1725742819507,0.33376272,54188.0,54187.0,0.093277]
[1725742821313,0.224,54188.0,54187.0,0.093277]
[1725742824122,0.024,54188.0,54187.0,0.093277]
[1725742827526,0.024,54188.0,54187.0,0.14849489]
[1725742829517,0.024,54188.0,54187.0,0.093277]
[1725742830818,0.224,54188.0,54187.0,0.093277]
[1725742833517,0.316275,54188.0,54187.0,0.001]
[1725742835230,0.116275,54188.0,54187.0,0.07473395]
[1725742835427,0.116275,54188.0,54187.0,0.16701095]
[1725742835633,0.024,54188.0,54187.0,0.093277]
[1725742839230,0.05963863,54188.0,54187.0,0.093277]
[1725742841829,0.05963863,54188.0,54187.0,0.293277]
[1725742842236,0.05963863,54188.0,54187.0,0.385554]
[1725742842438,0.024,54188.0,54187.0,0.385554]
[1725742843132,0.024,54188.0,54187.0,1.539194]
[1725742843528,0.024,54188.0,54187.0,0.939194]
[1725742844540,0.024,54188.0,54187.0,1.01298044]
[1725742844735,0.024,54188.0,54187.0,0.45934044]
[1725742844943,0.024,54188.0,54187.0,1.01298044]
[1725742845742,0.024,54188.0,54187.0,0.81298044]
[1725742845943,0.024,54188.0,54187.0,0.25934044]
[1725742847032,0.024,54188.0,54187.0,0.36934044]
[1725742847533,0.024,54188.0,54187.0,0.25934044]
[1725742849334,0.024,54188.0,54187.0,0.16706344]
[1725742849533,0.024,54188.0,54187.0,0.093277]
[1725742850436,0.024,54188.0,54187.0,0.16706344]
[1725742851440,0.024,54188.0,54187.0,0.093277]
[1725742851651,0.05963887,54188.0,54187.0,0.093277]
[1725742853139,0.0596389,54188.0,54187.0,0.093277]
[1725742853643,0.27145704,54188.0,54187.0,0.001]
[1725742853842,0.45371329,54188.0,54187.0,0.001]
[1725742855246,0.30709594,54188.0,54187.0,0.001]
[1725742855441,0.092277,54187.0,54174.0,0.0553654]
[1725742855649,0.11,54175.0,54174.0,0.092299]
[1725742856634,0.11,54177.0,54176.0,0.092296]
[1725742856944,0.11009486,54178.0,54174.0,0.1216971]
[1725742857336,0.11009486,54178.0,54177.0,0.092294]
[1725742859344,0.092287,54182.0,54179.0,0.092289]
[1725742859545,0.04612284,54182.0,54180.0,0.14061603]
[1725742859738,0.04612284,54182.0,54181.0,0.14061603]
[1725742860049,0.0491,54183.0,54181.0,0.23290303]
[1725742860236,0.0491,54183.0,54182.0,0.14061603]
[1725742860435,0.0491,54183.0,54182.0,0.23282686]
[1725742861642,0.0561,54183.0,54182.0,0.23282686]
[1725742862140,0.007,54183.0,54182.0,0.54355702]
[1725742862349,0.007,54183.0,54182.0,0.43290203]
[1725742862650,0.007,54183.0,54182.0,0.44300506]
[1725742862651,0.013,54183.0,54182.0,0.44300506]
[1725742863049,0.013,54183.0,54182.0,1.76782222]
[1725742864649,0.013,54183.0,54182.0,1.16782222]
[1725742865847,0.0496,54195.0,54194.0,0.092265]
[1725742866445,0.08523623,54195.0,54194.0,0.092265]
[1725742867062,0.09923623,54195.0,54194.0,0.092265]
[1725742867239,0.10623623,54195.0,54194.0,0.093265]
[1725742868838,0.29803213,54195.0,54194.0,0.093265]
[1725742870054,0.39029613,54195.0,54194.0,0.001]
[1725742871355,0.39029703,54195.0,54194.0,0.001]
[1725742871556,0.10181568,54195.0,54194.0,0.093265]
[1725742874357,0.06617855,54195.0,54194.0,0.093265]
[1725742874568,0.021,54195.0,54194.0,0.093265]
[1725742880357,0.021,54195.0,54194.0,0.203265]
[1725742881560,0.05663604,54195.0,54194.0,0.203265]
[1725742881865,0.05663604,54195.0,54194.0,0.093265]
[1725742883961,0.16663604,54195.0,54194.0,0.001]
[1725742884161,0.25890004,54195.0,54194.0,0.001]
[1725742884470,0.14890004,54195.0,54194.0,0.001]
[1725742885561,0.05663604,54195.0,54194.0,0.203265]
[1725742885777,0.05663604,54195.0,54194.0,1.44909]
[1725742886273,0.021,54195.0,54194.0,1.44909]
[1725742888078,0.021,54195.0,54194.0,1.53909]
[1725742889577,0.021,54195.0,54194.0,1.5944028]
[1725742889968,0.021,54195.0,54194.0,1.53909]
[1725742890177,0.021,54195.0,54194.0,1.5944028]
[1725742890478,0.021,54195.0,54194.0,1.53909]
[1725742893173,0.021,54195.0,54194.0,1.33909]
[1725742893377,0.021,54195.0,54194.0,0.093265]
[1725742893769,0.021,54195.0,54194.0,0.001]
[1725742893977,1.17456,54195.0,54187.0,0.0553128]
[1725742894173,0.2,54191.0,54185.0,0.00901755]
[1725742894373,0.2,54191.0,54183.0,0.0553128]
[1725742894576,0.2,54191.0,54182.0,0.0553128]
[1725742895271,0.2,54187.0,54182.0,0.0553128]
[1725742895473,0.0493,54186.0,54182.0,0.0553128]
[1725742895675,0.0483,54186.0,54182.0,0.0553128]
[1725742895973,0.0483,54186.0,54185.0,0.001]
[1725742896480,0.0483,54186.0,54182.0,0.001]
[1725742896878,0.0483,54186.0,54183.0,0.092284]
[1725742897079,0.0503,54186.0,54185.0,0.001]
[1725742897387,0.0603,54186.0,54185.0,0.002]
[1725742898183,0.012,54186.0,54185.0,0.202]
[1725742898778,0.01,54186.0,54185.0,0.201]
[1725742899178,0.008,54186.0,54185.0,0.2]
[1725742899380,0.011,54186.0,54185.0,0.2]
[1725742899586,0.013,54186.0,54185.0,0.2]
[1725742899881,0.013,54186.0,54185.0,0.293281]
[1725742904896,0.013,54186.0,54185.0,0.385562]
[1725742905194,0.013,54186.0,54185.0,0.435062]
[1725742908005,0.013,54186.0,54185.0,0.093281]
[1725742920519,0.013,54186.0,54185.0,0.18547713]
[1725742920819,0.013,54186.0,54185.0,0.093281]
[1725742921409,0.013,54186.0,54185.0,0.32607656]
[1725742921917,0.013,54186.0,54185.0,0.41835756]
[1725742922114,0.092253,54201.0,54196.0,0.092262]
[1725742922416,0.20222287,54201.0,54196.0,0.092262]
[1725742922608,0.24792287,54201.0,54196.0,0.092262]
[1725742923510,0.10996987,54200.0,54196.0,0.093262]
[1725742924109,0.2,54198.0,54196.0,0.093262]
[1725742924308,0.2,54198.0,54196.0,0.094262]
[1725742924510,0.2,54198.0,54196.0,0.093262]
[1725742924716,0.2,54198.0,54196.0,0.094262]
[1725742924909,0.2,54198.0,54196.0,0.093262]
[1725742925215,0.2,54198.0,54196.0,0.094262]
[1725742925911,0.203,54198.0,54196.0,0.094262]
[1725742926724,0.87548579,54197.0,54196.0,0.002]
[1725742926928,0.091272,54190.0,54178.0,0.321]
[1725742927117,0.11007892,54181.0,54178.0,0.00877311]
[1725742927421,0.11007892,54181.0,54177.0,0.049]
[1725742927815,0.10907892,54181.0,54180.0,0.092289]
[1725742928011,0.10807892,54181.0,54180.0,0.092289]
[1725742930514,0.11207892,54181.0,54180.0,0.092289]
[1725742930819,0.004,54181.0,54180.0,0.092289]
[1725742931024,0.008,54181.0,54180.0,0.092289]
[1725742933728,0.008,54181.0,54180.0,0.4040318]
[1725742941324,0.092277,54187.0,54181.0,0.092287]
[1725742941515,0.092277,54187.0,54185.0,0.11071716]
[1725742941715,0.092277,54187.0,54186.0,0.14060392]
[1725742941918,0.092277,54187.0,54181.0,0.14764501]
[1725742942115,0.09170283,54183.0,54181.0,0.14764501]
[1725742942520,0.18398883,54182.0,54180.0,0.05535745]
[1725742942728,0.2,54183.0,54181.0,0.05535745]
[1725742942729,0.29170283,54183.0,54181.0,0.05535745]
[1725742943026,0.38397886,54182.0,54181.0,0.05535745]
[1725742943230,0.092292,54179.0,54177.0,0.08288101]
[1725742944035,0.202292,54179.0,54177.0,0.08288101]
[1725742944423,0.202292,54179.0,54177.0,0.00907033]
[1725742944617,0.202292,54179.0,54176.0,0.07381068]
[1725742944819,0.202292,54179.0,54177.0,0.001]
[1725742946638,0.202292,54179.0,54176.0,0.002]
[1725742947334,0.202292,54179.0,54178.0,0.05533726]
[1725742948939,0.202292,54179.0,54178.0,0.14061352]
[1725742949724,0.202292,54179.0,54178.0,0.31176409]
[1725742949725,0.203292,54179.0,54178.0,0.31176409]
[1725742950537,0.001,54179.0,54178.0,0.23290552]
[1725742952134,0.001,54179.0,54178.0,0.3386242]
[1725742952632,0.001,54179.0,54178.0,0.32920552]
[1725742954730,0.001,54179.0,54178.0,0.32920046]
[1725742956840,0.001,54179.0,54178.0,0.23290046]
[1725742957041,0.092292,54178.0,54175.0,0.08261811]
[1725742957230,0.11,54176.0,54175.0,0.0088199]
[1725742957429,0.11,54176.0,54174.0,0.092299]
[1725742958340,0.11,54176.0,54175.0,0.05534306]
[1725742958742,0.11,54176.0,54175.0,0.05734306]
[1725742959638,0.0458,54178.0,54175.0,0.05634306]
[1725742959945,0.11,54177.0,54176.0,0.14763906]
[1725742960240,0.11,54177.0,54176.0,0.092296]
[1725742963945,0.202294,54177.0,54176.0,0.23291737]
[1725742964449,0.202294,54177.0,54176.0,0.23291818]
[1725742965642,0.252194,54177.0,54176.0,0.23291818]
[1725742968646,0.092296,54176.0,54169.0,0.12904906]
[1725742968848,0.184608,54171.0,54170.0,0.31179151]
[1725742969043,0.294608,54171.0,54170.0,0.25131004]
[1725742969245,1.448408,54171.0,54170.0,0.14062589]
[1725742969446,0.184612,54170.0,54169.0,0.11068415]
[1725742969645,0.738412,54170.0,54169.0,0.14064277]
[1725742969845,1.246106,54170.0,54169.0,0.23285071]
[1725742970050,1.338412,54170.0,54169.0,0.09220794]
[1725742970252,1.246106,54170.0,54169.0,0.09220794]
[1725742970458,1.246106,54170.0,54167.0,0.09220794]
[1725742970644,0.11,54168.0,54167.0,0.09220794]
[1725742970953,0.109,54168.0,54167.0,0.23285707]
[1725742971150,0.101,54168.0,54167.0,0.23285707]
[1725742971551,0.101,54168.0,54167.0,0.09320794]
[1725742971953,0.19331,54168.0,54167.0,0.001]
[1725742972559,0.20331,54168.0,54167.0,0.002]
[1725742973450,1.35715,54168.0,54167.0,0.002]
[1725742973655,1.35815,54168.0,54167.0,0.002]
[1725742974259,1.35687004,54168.0,54167.0,0.001]
[1725742974559,1.36887004,54168.0,54167.0,0.002]
[1725742975144,0.65715,54168.0,54167.0,0.092311]
[1725742975344,0.123,54168.0,54167.0,0.093311]
[1725742976460,0.112,54168.0,54167.0,0.093311]
[1725742976757,0.125,54168.0,54167.0,0.093311]
[1725742976958,0.21731,54168.0,54167.0,0.093311]
[1725742977654,0.21631,54168.0,54167.0,0.093311]
[1725742977865,0.21631,54168.0,54167.0,0.001]
[1725742978164,0.21631,54168.0,54166.0,0.092312]
[1725742978758,0.20531,54168.0,54166.0,0.092312]
[1725742978957,0.20531,54168.0,54167.0,0.05528342]
[1725742979563,0.20331,54168.0,54167.0,0.05528342]
[1725742979759,0.20631,54168.0,54167.0,0.05528342]
[1725742980851,0.092311,54167.0,54166.0,0.14759542]
[1725742982571,0.097311,54167.0,54166.0,0.14759542]
[1725742982870,0.097311,54167.0,54166.0,0.092312]
[1725742983164,0.097311,54167.0,54166.0,0.14753598]
[1725742983165,0.093311,54167.0,54166.0,0.14753598]
[1725742983351,0.097311,54167.0,54166.0,0.14753598]
[1725742984962,0.099311,54167.0,54166.0,0.14853598]
[1725742985764,0.098311,54167.0,54166.0,0.093312]
[1725742985962,0.099311,54167.0,54166.0,0.14855046]
[1725742986263,0.093311,54167.0,54166.0,0.092312]
[1725742986453,0.098311,54167.0,54166.0,0.093312]
[1725742987164,0.098311,54167.0,54166.0,0.10233807]
[1725742987464,0.005,54167.0,54166.0,0.21233807]
[1725742987658,0.006,54167.0,54166.0,0.21233807]